{"text_format":"1","workbook":"xlsx","n_sheets":4,"sheets":["Krok 1","Krok 2","Krok 3","Krok 4"],"not_rendered":{"charts":0,"images":2,"macros":1,"external_links":1,"defined_names":10,"comments":0,"pivot_tables":0},"unopened":[],"bounds":{"document_bytes":16777216,"sheet_cells":100000,"rows_first":2000,"rows_last":500,"rows_between":2000,"halvings":0,"cell_chars":16384,"cell_head_chars":4096},"cells_cut":0,"cells_raw":0,"read":"whole","date_system":"1900"}

{"sheet":"Krok 1","index":0,"n_rows":10,"n_cols":6,"rows_kept":10,"cut":false,"hidden":false,"merged":[[1,1,1,5]]}
[]
[null,"Konfigurator oferty SPE w ramach programu Wyprawka szkolna 2023/24\nUWAGA! Dla każdego ucznia wypełniamy osobny plik. \nW kroku 1 podajemy dane zamawiającego nauczyciela oraz dane do wysyłki.\nW kroku 2 podajemy dane do faktury imiennej (dane rodzica).\nFormularz proszę odesłać na adres: wyprawka@nowaera.pl"]
[]
[null,null,"Imię i nazwisko zamawiającego nauczyciela",null,null,"q"]
[]
[null,null,"Adres szkoły - dane do wysyłki"]
[]
[null,null,"Dane kontaktowe zamawiającego"]
[]
[null,null,"Dodatkowe informacje/notatki"]

{"sheet":"Krok 2","index":1,"n_rows":10,"n_cols":3,"rows_kept":10,"cut":false,"hidden":false,"merged":[[1,1,1,5]]}
[]
[null,"Dane do faktury imiennej - UWAGA! Faktura za zamówienie w ramach wyprawki musi zostać wystawiona na dane Rodzica/Opiekuna prawnego konkretnego Ucznia"]
[]
[null,null,"Imię i nazwisko ucznia/opiekuna prawnego"]
[]
[null,null,"ulica, numer budynku,numer mieszkania"]
[]
[null,null,"kod pocztowy, miejscowość"]
[]
[null,null,"Dodatkowe uwagi zamawiającego"]

{"sheet":"Krok 3","index":2,"n_rows":180,"n_cols":6,"rows_kept":180,"cut":false,"hidden":false,"merged":[[1,0,1,5],[2,0,2,5],[4,0,4,1],[75,0,76,0],[23,0,23,5],[25,0,27,0],[28,0,33,0],[34,0,38,0],[39,0,41,0],[42,0,49,0],[50,0,52,0],[53,0,56,0],[57,0,62,0],[63,0,70,0],[71,0,74,0],[112,0,114,0],[77,0,78,0],[79,0,80,0],[81,0,87,0],[88,0,92,0],[93,0,95,0],[96,0,98,0],[100,0,102,0],[103,0,105,0],[106,0,108,0],[179,5,179,6],[115,0,118,0],[119,0,121,0],[122,0,123,0],[124,0,135,0],[136,0,151,0],[152,0,158,0],[161,0,165,0],[166,0,167,0],[168,0,169,0],[170,0,176,0],[179,2,179,4]]}
[]
["Szkoła Przysposabiająca do pracy"]
[]
["Rodzaj","Tytuł","KH","Cena  pojedynczego egz.","Ilość egz.","Wartość"]
["Seria AKTYWNI ZAWODOWO"]
["MAT. EDUKACYJNE","PWN PEWNY START. AKTYWNI ZAWODOWO Materiał edukacyjny. Prace porządkowe. Czynności porządkowe.  (NOWOŚĆ 2023)",85713,58,null,{"$f":"E6*D6","v":0}]
["MAT. ĆWICZENIOWE","PEWNY START. AKTYWNI ZAWODOWO Prace porządkowe. Karty pracy 1 (NOWOŚĆ 2023)",85710,40,null,{"$f":"E7*D7","v":0}]
["MAT. ĆWICZENIOWE","PEWNY START. AKTYWNI ZAWODOWO. Prace porządkowe. Karty pracy 2 (NOWOŚĆ 2023)",85711,40,null,0]
["MAT. ĆWICZENIOWE","PEWNY START. AKTYWNI ZAWODOWO Prace porządkowe. Karty pracy 3 (NOWOŚĆ 2023)",85712,40,null,0]
["MAT. EDUKACYJNE","PWN PEWNY START. AKTYWNI ZAWODOWO Materiał edukacyjny. ABC rękodzieła",49157,58,null,0]
["MAT. ĆWICZENIOWE","PEWNY START. AKTYWNI ZAWODOWO Karty pracy 1. Rękodzieło",85705,40,null,0]
["MAT. ĆWICZENIOWE","PEWNY START. AKTYWNI ZAWODOWO Karty pracy 2. Rękodzieło",85706,40,null,0]
["MAT. EDUKACYJNE","PWN PEWNY START. AKTYWNI ZAWODOWO Materiał edukacyjny. Pracuję w biurze",49164,58,null,0]
["MAT. ĆWICZENIOWE","PEWNY START. AKTYWNI ZAWODOWO Karty pracy 1. Prace biurowe",85703,40,null,0]
["MAT. EDUKACYJNE","PWN PEWNY START. AKTYWNI ZAWODOWO Materiał edukacyjny. Podaję do stołu",49169,58,null,0]
["MAT. ĆWICZENIOWE","PEWNY START. AKTYWNI ZAWODOWO Karty pracy 1. Zajęcia kulinarne",85707,40,null,0]
["MAT. ĆWICZENIOWE","PWN PEWNY START. AKTYWNI ZAWODOWO Karty pracy 2. Zajęcia kulinarne",49171,40,null,0]
["MAT. ĆWICZENIOWE","PWN PEWNY START. AKTYWNI ZAWODOWO Karty pracy 3. Zajęcia kulinarne",49172,40,null,0]
["MAT. EDUKACYJNE","PWN PEWNY START. AKTYWNI ZAWODOWO Plansze magnetyczne. Kalendarz ogrodnika",49177,200,null,0]
["MAT. ĆWICZENIOWE","PEWNY START. AKTYWNI ZAWODOWO Karty pracy 1. Ogrodnictwo",85701,40,null,0]
["MAT. ĆWICZENIOWE","PEWNY START. AKTYWNI ZAWODOWO Karty pracy 2. Ogrodnictwo",85702,40,null,0]
[]
[]
["PEŁNA LISTA PUBLIKACJI "]
["Rodzaj","Tytuł","KH","Cena  pojedynczego egz.","Ilość egz.","Wartość"]
["MATERIAŁY EDUKACYJNE","Pewny start. A. Zestaw. Moja książka, Codziennik szkolny Funkcjonowanie, komunikacja, kreatywność","086561",197,null,{"$f":"E26*D26","v":0}]
[null,"Pewny start A Moja książka","086562",110,null,{"$f":"E27*D27","v":0}]
[null,"Pewny start A Codziennik szkolny Funkcjonowanie, komunikacja, kreatywność","086563",95,null,{"$f":"E28*D28","v":0}]
["MATERIAŁY ĆWICZENIOWE","Pewny start. A. Zestaw. Karty pracy. Jesień, zima, Wiosna, lato","086567",77,null,0]
[null,"Pewny start. A. Zestaw. Karty pracy. Czytanie, pisanie, Plastyka, grafomotoryka","086564",77,null,0]
[null,"Pewny start A Karty pracy Jesień, zima","086568",39,null,0]
[null,"Pewny start. A Karty pracy Wiosna, lato","086569",39,null,0]
[null,"Pewny start A Karty pracy Czytanie, pisanie","086565",39,null,0]
[null,"Pewny start. A. Karty pracy Plastyka, grafomotoryka","086566",39,null,0]
["MATERIAŁY EDUKACYJNE","Pewny start D Zestaw Moja książka, Codziennik szkolny. Funkcjonowanie, Codziennik szkolny. Komunikacja, Codziennik szkolny. Kreatywność ","086581",380,null,0]
[null,"Pewny start D Moja książka","086582",112,null,0]
[null,"Pewny start D Codziennik szkolny. Funkcjonowanie","086583",95,null,0]
[null,"Pewny start D Codziennik szkolny. Komunikacja","086584",95,null,0]
[null,"Pewny start D Codziennik szkolny. Kreatywność","086585",95,null,0]
["MATERIAŁY ĆWICZENIOWE","Pewny start D  Zestaw. Karty pracy. Jesień, zima, Wiosna, lato","086586",77,null,0]
[null,"Pewny start D Karty pracy.  Jesień, zima","086587",39,null,0]
[null,"Pewny start D Karty pracy.  Wiosna, lato","086588",39,null,0]
["MATERIAŁY EDUKACYJNE","Pewny start G Zestaw Moja książka. Codziennik szkolny. Funkcjonowanie 1-3, Komunikacja 1-2, Kreatywność ","086601",654,null,0]
[null,"Pewny start G Moja książka","086602",112,null,0]
[null,"Pewny start G Codziennik szkolny. Funkcjonowanie 1","086603",95,null,0]
[null,"Pewny start G Codziennik szkolny. Funkcjonowanie 2","086604",95,null,0]
[null,"Pewny start G Codziennik szkolny. Funkcjonowanie 3","086605",95,null,0]
[null,"Pewny start G Codziennik szkolny. Komunikacja 1","086606",95,null,0]
[null,"Pewny start G Codziennik szkolny. Komunikacja 2","086607",95,null,0]
[null,"Pewny start G Codziennik szkolny. Kreatywność","086608",95,null,0]
["MATERIAŁY ĆWICZENIOWE","Pewny start G Zestaw. Karty pracy. Jesień, zima, Wiosna, lato","086609",77,null,0]
[null,"Pewny start G Karty pracy  jesień, zima","086610",39,null,0]
[null,"Pewny start G Karty pracy  wiosna, lato","086611",39,null,0]
[null,"AKADEMIA POMYSŁÓW. ZAJĘCIA WYRÓWNAWCZE Zestaw","085611",499,null,0]
[null,"AKADEMIA POMYSŁÓW. UCZEŃ Z AUTYZMEM 4-8 Zestaw","085571",499,null,0]
[null,"AKADEMIA POMYSŁÓW. UCZEŃ Z LEKKĄ NIEPEŁNOSPRAWNOŚCIĄ INTELEKTUALNĄ Zestaw","085591",499,null,0]
[null,"AKADEMIA POMYSŁÓW. UCZEŃ Z AUTYZMEM 1-3 Zestaw","085551",499,null,0]
["MATERIAŁY ĆWICZENIOWE","Funkcje psychofizyczne. Funkcjonowanie społeczne 2","086542",74,null,0]
[null,"Funkcje psychofizyczne. Koncentracja uwagi 2","086538",74,null,0]
[null,"Funkcje psychofizyczne.Orientacja przestrzenna 2","086541",74,null,0]
[null,"Funkcje psychofizyczne. Percepcja słuchowa 2","086540",74,null,0]
[null,"Funkcje psychofizyczne.Percepcja wzrokowa 2","086539",74,null,0]
[null,"Funkcje psychofizyczne.Wypowiedzi ustne i pisemne 2","086543",74,null,0]
["MATERIAŁY ĆWICZENIOWE","Pewny start. Moja matematyka. Jesień, Zima, Wiosna, lato. Poziom A","086481",154,null,0]
[null,"Pewny start. Moja matematyka. Jesień. Karty pracy.  Poziom A","086482",55,null,0]
[null,"Pewny start. Moja matematyka. Zima. Karty pracy. Poziom A","086483",55,null,0]
[null,"Pewny start. Moja matematyka. Karty pracy. Wiosna, lato. Poziom A","086484",55,null,0]
[null,"Pewny start. Moja matematyka. Jesień, Zima, Wiosna, lato. Poziom B","086485",154,null,0]
[null,"Pewny start. Moja matematyka. Jesień. Karty pracy. Poziom B","086486",55,null,0]
[null,"Pewny start. Moja matematyka. Zima. Karty pracy. Poziom B","086487",55,null,0]
[null,"Pewny start. Moja matematyka. Wiosna, lato. Karty pracy. Poziom B","086488",55,null,0]
["MATERIAŁY ĆWICZENIOWE","Pewny start. Nowe cztery pory roku. Jesień. Karty pracy","085932",55,null,0]
[null,"Pewny start. Nowe cztery pory roku. Wiosna, lato. Karty pracy","085934",55,null,0]
[null,"Pewny start. Nowe cztery pory roku. Zima. Karty pracy","085933",55,null,0]
[null,"Pewny start. Nowe cztery pory roku. Karty zadaniowe. Umiem to zrobić","085936",43,null,0]
["MATERIAŁY EDUKACYJNE","Pewny start. Nowe cztery pory roku. Karty matematyczne. Liczby","085938",47,null,0]
[null,"Pewny start. Nowe cztery pory roku. Karty do nauki czytania i pisania. Litery i wyrazy","085937",60,null,0]
["MATERIAŁY ĆWICZENIOWE","Pewny start. Dzisiaj w szkole. Poznajemy siebie. Karty pracy","049254",39,null,0]
[null,"Pewny start. Dzisiaj w szkole. Wiemy więcej. Karty pracy","049256",39,null,0]
["MATERIAŁY EDUKACYJNE","Pewny start. Dzisiaj w szkole. Czytanki. Poznajemy Olę i Adama","085781",43,null,0]
[null,"Pewny start. Dzisiaj w szkole. Historyjki obrazkowe. Układam,opowiadam","049258",56,null,0]
["MATERIAŁY ĆWICZENIOWE","Pewny start. Mój dobry rok. Moja jesień, Moja zima, Moja wiosna, Moje lato- zestaw","049371",108,null,0]
[null,"Pewny start. Mój dobry rok. Lubię jesień. Karty pracy","049373",39,null,0]
[null,"Pewny start. Mój dobry rok. Lubię wiosnę, lubię lato. Karty pracy","049374",39,null,0]
[null,"Pewny start. Mój dobry rok. Lubię zimę. Karty pracy","049375",39,null,0]
[null,"Pewny start. Mój dobry rok. Kolorowe miesiące. Kalendarz","049382",40,null,0]
[null,"Pewny start. Mój dobry rok. Czytanie i pisanie. Karty pracy","085832",52,null,0]
[null,"PWN PEWNY START Plansze konturowe","049281",63,null,0]
["MATERIAŁY EDUKACYJNE","Pewny start. Mój dobry rok. Materiał edukacyjny. Lubię jesień, Lubięzimę, Lubię wiosnę, lubię lato","085831",83,null,0]
[null,"Pewny start. Mój dobry rok. Historyjki społeczne. Uczę się każdego dnia","049404",56,null,0]
[null,"PWN PEWNY START. MÓJ DOBRY ROK Historyjki obrazkowe. Układam, opowiadam","049377",61,null,0]
[null,"Pewny start. Mój dobry rok. Plansze demonstracyjne. Poznaję świat","049409",200,null,{"$f":"E92*D92","v":0}]
[null,"Pewny start. Mój dobry rok. Świat w obrazkach","049410",200,null,0]
["MATERIAŁY EDUKACYJNE","Pewny start. Świat wokół mnie. Wycinanki. Emocje","086193",43,null,0]
[null,"Pewny start. Świat wokół mnie. Historyjki obrazkowe. Układam, opowiadam","086192",56,null,0]
[null,"Pewny start. Świat wokół mnie. Czytanki. Ola, Adam i ich świat","086195",43,null,0]
["MATERIAŁY ĆWICZENIOWE","Pewny start. Wokół pór roku. Wokół jesieni. Karty pracy","086262",39,null,0]
[null,"Pewny start. Wokół pór roku. Wokół wiosny, wokół lata. Karty pracy","086264",39,null,0]
[null,"Pewny start. Wokół pór roku. Wokół zimy. Karty pracy","086263",39,null,0]
["MATERIAŁY EDUKACYJNE","Pewny start. Wokół pór roku. Czytanki. Rozmowy Oli i Adama","086265",43,null,0]
["MATERIAŁY ĆWICZENIOWE","Pewny start. Moja codzienność. Karty pracy. Jesień","085811",42,null,0]
[null,"Pewny start. Moja codzienność. Wiosna, lato. Karty pracy","085813",42,null,0]
[null,"Pewny start. Moja codzienność. Zima. Karty pracy","085812",42,null,0]
["MATERIAŁY ĆWICZENIOWE","Pewny start. Poznać i zrozumieć uczucia. Nasz wewnętrzny świat. Karty pracy","086142",39,null,0]
[null,"Pewny start. Poznać i zrozumieć uczucia. Czytanki. Świat uczuć Ani i Kuby","049581",39,null,0]
[null,"Pewny start. Poznać i zrozumieć uczucia. Opowiastki z ćwiczeniami. Za co kochają nas zwierzęta","049582",52,null,0]
["MATERIAŁY EDUKACYJNE","Pewny start. Poznać i zrozumieć uczucia. Historyjki obrazkowe. Co bybyło, gdyby","086148",83,null,0]
[null,"Pewny start. Poznać i zrozumieć uczucia. Poradnik pozytywny. Jak sobieradzić z uczuciami","086147",62,null,0]
[null,"Pewny start. Poznać i zrozumieć uczucia. Historyjki społeczne. Uczuciaw nas i w relacjach ze światem","086146",56,null,0]
["MATERIAŁ ĆW./EDU.","Pewny start. O dojrzewaniu. Chłopcy. Zestaw","049467",265,null,0]
[null,"Pewny start. O dojrzewaniu. Chłopcy. Poradnik metodyczny z tablicami do komunikacji","049478",29,null,0]
["MATERIAŁ ĆW./EDU.","Pewny start. O dojrzewaniu. Dziewczęta. Zestaw","049497",265,null,0]
["MATERIAŁY ĆWICZENIOWE","Pewny start. Odkrywam świat. Moje ćwiczenia. Poziom A","086111",52,null,0]
[null,"Pewny start. Odkrywam świat. Moje ćwiczenia. Poziom B","086113",52,null,0]
[null,"Pewny start. Odkrywam świat. Moje ćwiczenia. Poziom C","049561",52,null,0]
["MATERIAŁY EDUKACYJNE","Pewny start. Odkrywam świat. Moja książka. Poziom A","086112",96,null,0]
[null,"Pewny start. Odkrywam świat. Moja książka. Poziom B","049557",109,null,0]
[null,"Pewny start. Odkrywam świat. Moja książka. Poziom C","049558",122,null,0]
[null,"Pewny start. Odkrywam świat. Tablice do komunikacji. Poradnik metodyczny","049562",36,null,0]
["MATERIAŁY EDUKACYJNE","Pewny start. Karta demonstracyjna. Pogoda","049303",16,null,0]
[null,"Pewny start. Karta demonstracyjna. Polska","049304",16,null,0]
[null,"Pewny start. Karta demonstracyjna. Pory roku","049305",16,null,0]
["MATERIAŁY ĆWICZENIOWE","Pewny start. Uczymy się pisać. Zeszyt ćwiczeń. Piszę po śladzie wyrazy 1","049652",27,null,0]
[null,"Pewny start. Uczymy się pisać. Zeszyt ćwiczeń. Piszę po śladzie zdania 1","049653",15,null,0]
["MATERIAŁY EDUKACYJNE","Pewny start. Czytam sam. Dbam o zdrowie","049091",43,null,0]
[null,"Pewny start. Czytam sam. Dobre zachowanie w szkole","049092",43,null,0]
[null,"Pewny start. Czytam sam. Ja i świat zwierząt","049093",43,null,0]
[null,"Pewny start. Czytam sam. Jaki jestem?","049094",43,null,0]
[null,"Pewny start. Czytam sam. Jestem konsumentem","049095",43,null,0]
[null,"Pewny start. Czytam sam. Kim jestem?","049096",43,null,0]
[null,"Pewny start. Czytam sam. Kulturalne zachowanie przy stole","049097",43,null,0]
[null,"Pewny start. Czytam sam. Mieszkam w Polsce","049098",43,null,0]
[null,"Pewny start. Czytam sam. Moje hobby","049099",43,null,0]
[null,"Pewny start. Czytam sam. Moje relacje z innymi","049100",43,null,0]
[null,"Pewny start. Czytam sam. Pomagam w domu","049101",43,null,0]
[null,"Pewny start. Czytam sam. Uroczystości i okoliczności","049102",43,null,0]
["MATERIAŁY EDUKACYJNE","Pewny start. Instrukcje zachowań. Asertywność","049283",43,null,0]
[null,"Pewny start. Instrukcje zachowań. Bezpieczeństwo na drodze","049284",43,null,0]
[null,"Pewny start. Instrukcje zachowań. Bezpieczeństwo w internecie","049285",43,null,{"$f":"E139*D139","v":0}]
[null,"Pewny start. Instrukcje zachowań. Choroba","049286",43,null,0]
[null,"Pewny start. Instrukcje zachowań. Co czuję?","049287",43,null,0]
[null,"Pewny start. Instrukcje zachowań. Czas wolny","049288",43,null,0]
[null,"Pewny start. Instrukcje zachowań. Dbam o swoje ciało","049289",43,null,0]
[null,"Pewny start. Instrukcje zachowań. Jedzenie","049292",43,null,0]
[null,"Pewny start. Instrukcje zachowań. Jestem dorosły","049293",43,null,0]
[null,"Pewny start. Instrukcje zachowań. Kawiarnia","049294",43,null,0]
[null,"Pewny start. Instrukcje zachowań. Kim jestem?","049295",43,null,0]
[null,"Pewny start. Instrukcje zachowań. Komunikacja między nami","049298",43,null,0]
[null,"Pewny start. Instrukcje zachowań. Nagłe zdarzenie","049299",43,null,0]
[null,"Pewny start. Instrukcje zachowań. Pory roku","049300",43,null,0]
[null,"Pewny start. Instrukcje zachowań. Ubranie","049301",43,null,0]
[null,"Pewny start. Instrukcje zachowań. Zakupy","049302",43,null,0]
["MATERIAŁY ĆWICZENIOWE","Pewny start. Zajęcia rewalidacyjne. Funkcjonowanie społeczne. Karty pracy. Poziom 2","049692",73,null,0]
[null,"Pewny start. Zajęcia rewalidacyjne. Funkcjonowanie społeczne. Karty pracy. Poziom 3","049693",73,null,0]
[null,"Pewny start. Zajęcia rewalidacyjne. Koncentracja uwagi. Karty pracy. Poziom 3","049697",73,null,0]
[null,"Pewny start. Zajęcia rewalidacyjne. Orientacja przestrzenna. Karty pracy. Poziom 3","049700",73,null,0]
[null,"Pewny start. Zajęcia rewalidacyjne. Percepcja słuchowa. Karty pracy. Poziom 3","049703",73,null,0]
[null,"Pewny start. Zajęcia rewalidacyjne. Percepcja wzrokowa. Karty pracy. Poziom 3","049706",73,null,0]
[null,"Pewny start. Zajęcia rewalidacyjne. Wypowiedzi ustne i pisemne. Karty pracy. Poziom 3","049709",73,null,0]
["MATERIAŁ EDUKACYJNY","Pewny start. Zaśpiewajmy razem. Śpiewnik z symbolami PCS","049741",200,null,0]
["MATERIAŁ ĆWICZENIOWY","Pewny start. Zaśpiewajmy razem. Zeszyt plastyczno-grafomotoryczny do śpiewnika z symbolami PCS","049742",40,null,0]
["MATERIAŁY ĆWICZENIOWE","Akademia pomysłów. Rozwój emocjonalno-społeczny. Ja i moja rodzina","049000",54,null,0]
[null,"Akademia pomysłów. Rozwój emocjonalno-społeczny. Ja i moje ciało. Część 1","049001",48,null,0]
[null,"Akademia pomysłów. Rozwój emocjonalno-społeczny. Ja i moje ciało. Część 2","049002",48,null,0]
[null,"Akademia pomysłów. Rozwój emocjonalno-społeczny. Ja w szkole","049003",54,null,0]
[null,"Akademia pomysłów. Rozwój emocjonalno-społeczny. Ja w świecie","049004",48,null,0]
["MATERIAŁY EDUKACYJNE","Akademia pomysłów. Jestem ZA rozmową. Komiks społeczny 1","049016",69,null,0]
[null,"Akademia Pomysłów. Jestem ZA rozmową. Komiks społeczny 2","049017",69,null,0]
["MATERIAŁY EDUKACYJNE","Akademia pisania. Układanki obrazkowo-wyrazowe. Poznaję i utrwalam poprawną wpisownię wyrazów ó/u","049141",93,null,0]
[null,"Akademia pisania. Układanki obrazkowo-wyrazowe. Poznaję i utrwalam poprawną wpisownię wyrazów rz/ż","049142",93,null,0]
["MATERIAŁY ĆWICZENIOWE","Funkcje psychofizyczne. Grafomotoryka. Karty pracy.  Poziom 1","086531",74,null,0]
[null,"Funkcje psychofizyczne. Koncentracja uwagi. Karty pracy. Poziom 1","086532",74,null,0]
[null,"Funkcje psychofizyczne. Percepcja wzrokowa. Karty pracy. Poziom 1","086533",74,null,0]
[null,"Funkcje psychofizyczne. Percepcja słuchowa. Karty pracy. Poziom 1","086534",74,null,0]
[null,"Funkcje psychofizyczne. Orientacja przestrzenna. Karty pracy. Poziom 1","086535",74,null,0]
[null,"Funkcje psychofizyczne. Funkcjonowanie społeczne. Karty pracy. Poziom","086536",74,null,0]
[null,"Funkcje psychofizyczne. Wypowiedzi ustne i pisemne. Karty pracy. Poziom 1","086537",74,null,0]
["MATERIAŁ EDUKACYJNY","Funkcje psychofizyczne. Karty demonstracyjne i materiały interaktywne. Poziom 1","049282",330,null,0]
[]
[null,null,"WARTOŚĆ ZAMÓWIENIA",null,null,{"$f":"SUM(F6:F21)+SUM(F26:F178)","v":0}]

{"sheet":"Krok 4","index":3,"n_rows":189,"n_cols":6,"rows_kept":189,"cut":false,"hidden":false,"merged":[[90,0,96,0],[97,0,101,0],[102,0,104,0],[161,0,167,0],[170,0,174,0],[48,0,50,0],[51,0,58,0],[59,0,61,0],[62,0,65,0],[88,0,89,0],[14,0,14,5],[32,0,32,5],[34,0,36,0],[37,0,42,0],[43,0,47,0],[66,0,71,0],[72,0,79,0],[80,0,83,0],[84,0,85,0],[86,0,87,0],[105,0,107,0],[109,0,111,0],[112,0,114,0],[115,0,117,0],[121,0,123,0],[179,0,185,0],[188,3,188,4],[188,5,188,6],[124,0,127,0],[128,0,130,0],[131,0,132,0],[133,0,144,0],[145,0,160,0],[175,0,176,0],[177,0,178,0]]}
[]
[null,"Oferta Wyprawka szkolna"]
[null,"Dane zamawiającego"]
["Imię i nazwisko",{"$f":"'Krok 1'!E4","v":0}]
["Adres szkoły",{"$f":"'Krok 1'!E6","v":0}]
["Dane kontaktowe",{"$f":"'Krok 1'!E8","v":0}]
["Dodatkowe informacje/notatki",{"$f":"'Krok 1'!E10","v":0}]
[null,"Dane do faktury imiennej"]
["Imię i nazwisko ucznia/opiekuna prawnego",{"$f":"'Krok 2'!E4","v":0}]
["ulica, numer budynku,numer mieszkania",{"$f":"'Krok 2'!E6","v":0}]
["kod pocztowy, miejscowość",{"$f":"'Krok 2'!E8","v":0}]
["Dodatkowe uwagi zamawiającego",{"$f":"'Krok 2'!E10","v":0}]
[]
["Rodzaj","Tytuł","KH","Cena  pojedynczego egz.","Ilość egz.","Wartość"]
["Seria AKTYWNI ZAWODOWO"]
["MAT. EDUKACYJNE","PWN PEWNY START. AKTYWNI ZAWODOWO Materiał edukacyjny. Prace porządkowe. Czynności porządkowe.  (NOWOŚĆ 2023)",85713,58,{"$f":"'Krok 3'!E6","v":0},{"$f":"D16*E16","v":0}]
["MAT. ĆWICZENIOWE","PEWNY START. AKTYWNI ZAWODOWO Prace porządkowe. Karty pracy 1 (NOWOŚĆ 2023)",85710,40,{"$f":"'Krok 3'!E7","v":0},{"$f":"D17*E17","v":0}]
["MAT. ĆWICZENIOWE","PEWNY START. AKTYWNI ZAWODOWO. Prace porządkowe. Karty pracy 2 (NOWOŚĆ 2023)",85711,40,{"$f":"'Krok 3'!E8","v":0},0]
["MAT. ĆWICZENIOWE","PEWNY START. AKTYWNI ZAWODOWO Prace porządkowe. Karty pracy 3 (NOWOŚĆ 2023)",85712,40,{"$f":"'Krok 3'!E9","v":0},0]
["MAT. EDUKACYJNE","PWN PEWNY START. AKTYWNI ZAWODOWO Materiał edukacyjny. ABC rękodzieła",49157,58,{"$f":"'Krok 3'!E10","v":0},0]
["MAT. ĆWICZENIOWE","PEWNY START. AKTYWNI ZAWODOWO Karty pracy 1. Rękodzieło",85705,40,{"$f":"'Krok 3'!E11","v":0},0]
["MAT. ĆWICZENIOWE","PEWNY START. AKTYWNI ZAWODOWO Karty pracy 2. Rękodzieło",85706,40,{"$f":"'Krok 3'!E12","v":0},0]
["MAT. EDUKACYJNE","PWN PEWNY START. AKTYWNI ZAWODOWO Materiał edukacyjny. Pracuję w biurze",49164,58,{"$f":"'Krok 3'!E13","v":0},0]
["MAT. ĆWICZENIOWE","PEWNY START. AKTYWNI ZAWODOWO Karty pracy 1. Prace biurowe",85703,40,{"$f":"'Krok 3'!E14","v":0},0]
["MAT. EDUKACYJNE","PWN PEWNY START. AKTYWNI ZAWODOWO Materiał edukacyjny. Podaję do stołu",49169,58,{"$f":"'Krok 3'!E15","v":0},0]
["MAT. ĆWICZENIOWE","PEWNY START. AKTYWNI ZAWODOWO Karty pracy 1. Zajęcia kulinarne",85707,40,{"$f":"'Krok 3'!E16","v":0},0]
["MAT. ĆWICZENIOWE","PWN PEWNY START. AKTYWNI ZAWODOWO Karty pracy 2. Zajęcia kulinarne",49171,40,{"$f":"'Krok 3'!E17","v":0},0]
["MAT. ĆWICZENIOWE","PWN PEWNY START. AKTYWNI ZAWODOWO Karty pracy 3. Zajęcia kulinarne",49172,40,{"$f":"'Krok 3'!E18","v":0},0]
["MAT. EDUKACYJNE","PWN PEWNY START. AKTYWNI ZAWODOWO Plansze magnetyczne. Kalendarz ogrodnika",49177,200,{"$f":"'Krok 3'!E19","v":0},0]
["MAT. ĆWICZENIOWE","PEWNY START. AKTYWNI ZAWODOWO Karty pracy 1. Ogrodnictwo",85701,40,{"$f":"'Krok 3'!E20","v":0},0]
["MAT. ĆWICZENIOWE","PEWNY START. AKTYWNI ZAWODOWO Karty pracy 2. Ogrodnictwo",85702,40,{"$f":"'Krok 3'!E21","v":0},0]
[]
["PEŁNA LISTA PUBLIKACJI "]
["Rodzaj","Tytuł","KH","Cena  pojedynczego egz.","Ilość egz.","Wartość"]
["MATERIAŁY EDUKACYJNE","Pewny start. A. Zestaw. Moja książka, Codziennik szkolny Funkcjonowanie, komunikacja, kreatywność","086561",190,{"$f":"'Krok 3'!E26","v":0},{"$f":"E35*D35","v":0}]
[null,"Pewny start A Moja książka","086562",110,{"$f":"'Krok 3'!E27","v":0},{"$f":"E36*D36","v":0}]
[null,"Pewny start A Codziennik szkolny Funkcjonowanie, komunikacja, kreatywność","086563",95,{"$f":"'Krok 3'!E28","v":0},{"$f":"E37*D37","v":0}]
["MATERIAŁY ĆWICZENIOWE","Pewny start. A. Zestaw. Karty pracy. Jesień, zima, Wiosna, lato","086567",70,{"$f":"'Krok 3'!E29","v":0},0]
[null,"Pewny start. A. Zestaw. Karty pracy. Czytanie, pisanie, Plastyka, grafomotoryka","086564",70,{"$f":"'Krok 3'!E30","v":0},0]
[null,"Pewny start A Karty pracy Jesień, zima","086568",39,{"$f":"'Krok 3'!E31","v":0},0]
[null,"Pewny start. A Karty pracy Wiosna, lato","086569",39,{"$f":"'Krok 3'!E32","v":0},0]
[null,"Pewny start A Karty pracy Czytanie, pisanie","086565",39,{"$f":"'Krok 3'!E33","v":0},0]
[null,"Pewny start. A. Karty pracy Plastyka, grafomotoryka","086566",39,{"$f":"'Krok 3'!E34","v":0},0]
["MATERIAŁY EDUKACYJNE","Pewny start D Zestaw Moja książka, Codziennik szkolny. Funkcjonowanie, Codziennik szkolny. Komunikacja, Codziennik szkolny. Kreatywność ","086581",380,{"$f":"'Krok 3'!E35","v":0},0]
[null,"Pewny start D Moja książka","086582",112,{"$f":"'Krok 3'!E36","v":0},0]
[null,"Pewny start D Codziennik szkolny. Funkcjonowanie","086583",95,{"$f":"'Krok 3'!E37","v":0},0]
[null,"Pewny start D Codziennik szkolny. Komunikacja","086584",95,{"$f":"'Krok 3'!E38","v":0},0]
[null,"Pewny start D Codziennik szkolny. Kreatywność","086585",95,{"$f":"'Krok 3'!E39","v":0},0]
["MATERIAŁY ĆWICZENIOWE","Pewny start D  Zestaw. Karty pracy. Jesień, zima, Wiosna, lato","086586",70,{"$f":"'Krok 3'!E40","v":0},0]
[null,"Pewny start D Karty pracy.  Jesień, zima","086587",39,{"$f":"'Krok 3'!E41","v":0},0]
[null,"Pewny start D Karty pracy.  Wiosna, lato","086588",39,{"$f":"'Krok 3'!E42","v":0},0]
["MATERIAŁY EDUKACYJNE","Pewny start G Zestaw Moja książka. Codziennik szkolny. Funkcjonowanie 1-3, Komunikacja 1-2, Kreatywność ","086601",650,{"$f":"'Krok 3'!E43","v":0},0]
[null,"Pewny start G Moja książka","086602",112,{"$f":"'Krok 3'!E44","v":0},0]
[null,"Pewny start G Codziennik szkolny. Funkcjonowanie 1","086603",95,{"$f":"'Krok 3'!E45","v":0},0]
[null,"Pewny start G Codziennik szkolny. Funkcjonowanie 2","086604",95,{"$f":"'Krok 3'!E46","v":0},0]
[null,"Pewny start G Codziennik szkolny. Funkcjonowanie 3","086605",95,{"$f":"'Krok 3'!E47","v":0},0]
[null,"Pewny start G Codziennik szkolny. Komunikacja 1","086606",95,{"$f":"'Krok 3'!E48","v":0},0]
[null,"Pewny start G Codziennik szkolny. Komunikacja 2","086607",95,{"$f":"'Krok 3'!E49","v":0},0]
[null,"Pewny start G Codziennik szkolny. Kreatywność","086608",95,{"$f":"'Krok 3'!E50","v":0},0]
["MATERIAŁY ĆWICZENIOWE","Pewny start G Zestaw. Karty pracy. Jesień, zima, Wiosna, lato","086609",70,{"$f":"'Krok 3'!E51","v":0},0]
[null,"Pewny start G Karty pracy  jesień, zima","086610",39,{"$f":"'Krok 3'!E52","v":0},0]
[null,"Pewny start G Karty pracy  wiosna, lato","086611",39,{"$f":"'Krok 3'!E53","v":0},0]
[null,"AKADEMIA POMYSŁÓW. ZAJĘCIA WYRÓWNAWCZE Zestaw","085611",499,{"$f":"'Krok 3'!E54","v":0},0]
[null,"AKADEMIA POMYSŁÓW. UCZEŃ Z AUTYZMEM 4-8 Zestaw","085571",499,{"$f":"'Krok 3'!E55","v":0},0]
[null,"AKADEMIA POMYSŁÓW. UCZEŃ Z LEKKĄ NIEPEŁNOSPRAWNOŚCIĄ INTELEKTUALNĄ Zestaw","085591",499,{"$f":"'Krok 3'!E56","v":0},0]
[null,"AKADEMIA POMYSŁÓW. UCZEŃ Z AUTYZMEM 1-3 Zestaw","085551",499,{"$f":"'Krok 3'!E57","v":0},0]
["MATERIAŁY ĆWICZENIOWE","Funkcje psychofizyczne. Funkcjonowanie społeczne 2","086542",74,{"$f":"'Krok 3'!E58","v":0},0]
[null,"Funkcje psychofizyczne. Koncentracja uwagi 2","086538",74,{"$f":"'Krok 3'!E59","v":0},0]
[null,"Funkcje psychofizyczne.Orientacja przestrzenna 2","086541",74,{"$f":"'Krok 3'!E60","v":0},0]
[null,"Funkcje psychofizyczne. Percepcja słuchowa 2","086540",74,{"$f":"'Krok 3'!E61","v":0},0]
[null,"Funkcje psychofizyczne.Percepcja wzrokowa 2","086539",74,{"$f":"'Krok 3'!E62","v":0},0]
[null,"Funkcje psychofizyczne.Wypowiedzi ustne i pisemne 2","086543",74,{"$f":"'Krok 3'!E63","v":0},0]
["MATERIAŁY ĆWICZENIOWE","Pewny start. Moja matematyka. Jesień, Zima, Wiosna, lato. Poziom A","086481",154,{"$f":"'Krok 3'!E64","v":0},0]
[null,"Pewny start. Moja matematyka. Jesień. Karty pracy.  Poziom A","086482",55,{"$f":"'Krok 3'!E65","v":0},0]
[null,"Pewny start. Moja matematyka. Zima. Karty pracy. Poziom A","086483",55,{"$f":"'Krok 3'!E66","v":0},0]
[null,"Pewny start. Moja matematyka. Karty pracy. Wiosna, lato. Poziom A","086484",55,{"$f":"'Krok 3'!E67","v":0},0]
[null,"Pewny start. Moja matematyka. Jesień, Zima, Wiosna, lato. Poziom B","086485",154,{"$f":"'Krok 3'!E68","v":0},0]
[null,"Pewny start. Moja matematyka. Jesień. Karty pracy. Poziom B","086486",55,{"$f":"'Krok 3'!E69","v":0},0]
[null,"Pewny start. Moja matematyka. Zima. Karty pracy. Poziom B","086487",55,{"$f":"'Krok 3'!E70","v":0},0]
[null,"Pewny start. Moja matematyka. Wiosna, lato. Karty pracy. Poziom B","086488",55,{"$f":"'Krok 3'!E71","v":0},0]
["MATERIAŁY ĆWICZENIOWE","Pewny start. Nowe cztery pory roku. Jesień. Karty pracy","085932",55,{"$f":"'Krok 3'!E72","v":0},0]
[null,"Pewny start. Nowe cztery pory roku. Wiosna, lato. Karty pracy","085934",55,{"$f":"'Krok 3'!E73","v":0},0]
[null,"Pewny start. Nowe cztery pory roku. Zima. Karty pracy","085933",55,{"$f":"'Krok 3'!E74","v":0},0]
[null,"Pewny start. Nowe cztery pory roku. Karty zadaniowe. Umiem to zrobić","085936",43,{"$f":"'Krok 3'!E75","v":0},0]
["MATERIAŁY EDUKACYJNE","Pewny start. Nowe cztery pory roku. Karty matematyczne. Liczby","085938",47,{"$f":"'Krok 3'!E76","v":0},0]
[null,"Pewny start. Nowe cztery pory roku. Karty do nauki czytania i pisania. Litery i wyrazy","085937",60,{"$f":"'Krok 3'!E77","v":0},0]
["MATERIAŁY ĆWICZENIOWE","Pewny start. Dzisiaj w szkole. Poznajemy siebie. Karty pracy","049254",39,{"$f":"'Krok 3'!E78","v":0},0]
[null,"Pewny start. Dzisiaj w szkole. Wiemy więcej. Karty pracy","049256",39,{"$f":"'Krok 3'!E79","v":0},0]
["MATERIAŁY EDUKACYJNE","Pewny start. Dzisiaj w szkole. Czytanki. Poznajemy Olę i Adama","085781",43,{"$f":"'Krok 3'!E80","v":0},0]
[null,"Pewny start. Dzisiaj w szkole. Historyjki obrazkowe. Układam,opowiadam","049258",56,{"$f":"'Krok 3'!E81","v":0},0]
["MATERIAŁY ĆWICZENIOWE","Pewny start. Mój dobry rok. Moja jesień, Moja zima, Moja wiosna, Moje lato- zestaw","049371",108,{"$f":"'Krok 3'!E82","v":0},0]
[null,"Pewny start. Mój dobry rok. Lubię jesień. Karty pracy","049373",39,{"$f":"'Krok 3'!E83","v":0},0]
[null,"Pewny start. Mój dobry rok. Lubię wiosnę, lubię lato. Karty pracy","049374",39,{"$f":"'Krok 3'!E84","v":0},0]
[null,"Pewny start. Mój dobry rok. Lubię zimę. Karty pracy","049375",39,{"$f":"'Krok 3'!E85","v":0},0]
[null,"Pewny start. Mój dobry rok. Kolorowe miesiące. Kalendarz","049382",40,{"$f":"'Krok 3'!E86","v":0},0]
[null,"Pewny start. Mój dobry rok. Czytanie i pisanie. Karty pracy","085832",52,{"$f":"'Krok 3'!E87","v":0},0]
[null,"PWN PEWNY START Plansze konturowe","049281",63,{"$f":"'Krok 3'!E88","v":0},0]
["MATERIAŁY EDUKACYJNE","Pewny start. Mój dobry rok. Materiał edukacyjny. Lubię jesień, Lubięzimę, Lubię wiosnę, lubię lato","085831",83,{"$f":"'Krok 3'!E89","v":0},0]
[null,"Pewny start. Mój dobry rok. Historyjki społeczne. Uczę się każdego dnia","049404",56,{"$f":"'Krok 3'!E90","v":0},0]
[null,"PWN PEWNY START. MÓJ DOBRY ROK Historyjki obrazkowe. Układam, opowiadam","049377",61,{"$f":"'Krok 3'!E91","v":0},0]
[null,"Pewny start. Mój dobry rok. Plansze demonstracyjne. Poznaję świat","049409",200,{"$f":"'Krok 3'!E92","v":0},{"$f":"E101*D101","v":0}]
[null,"Pewny start. Mój dobry rok. Świat w obrazkach","049410",200,{"$f":"'Krok 3'!E93","v":0},0]
["MATERIAŁY EDUKACYJNE","Pewny start. Świat wokół mnie. Wycinanki. Emocje","086193",43,{"$f":"'Krok 3'!E94","v":0},0]
[null,"Pewny start. Świat wokół mnie. Historyjki obrazkowe. Układam, opowiadam","086192",56,{"$f":"'Krok 3'!E95","v":0},0]
[null,"Pewny start. Świat wokół mnie. Czytanki. Ola, Adam i ich świat","086195",43,{"$f":"'Krok 3'!E96","v":0},0]
["MATERIAŁY ĆWICZENIOWE","Pewny start. Wokół pór roku. Wokół jesieni. Karty pracy","086262",39,{"$f":"'Krok 3'!E97","v":0},0]
[null,"Pewny start. Wokół pór roku. Wokół wiosny, wokół lata. Karty pracy","086264",39,{"$f":"'Krok 3'!E98","v":0},0]
[null,"Pewny start. Wokół pór roku. Wokół zimy. Karty pracy","086263",39,{"$f":"'Krok 3'!E99","v":0},0]
["MATERIAŁY EDUKACYJNE","Pewny start. Wokół pór roku. Czytanki. Rozmowy Oli i Adama","086265",43,{"$f":"'Krok 3'!E100","v":0},0]
["MATERIAŁY ĆWICZENIOWE","Pewny start. Moja codzienność. Karty pracy. Jesień","085811",42,{"$f":"'Krok 3'!E101","v":0},0]
[null,"Pewny start. Moja codzienność. Wiosna, lato. Karty pracy","085813",42,{"$f":"'Krok 3'!E102","v":0},0]
[null,"Pewny start. Moja codzienność. Zima. Karty pracy","085812",42,{"$f":"'Krok 3'!E103","v":0},0]
["MATERIAŁY ĆWICZENIOWE","Pewny start. Poznać i zrozumieć uczucia. Nasz wewnętrzny świat. Karty pracy","086142",39,{"$f":"'Krok 3'!E104","v":0},0]
[null,"Pewny start. Poznać i zrozumieć uczucia. Czytanki. Świat uczuć Ani i Kuby","049581",39,{"$f":"'Krok 3'!E105","v":0},0]
[null,"Pewny start. Poznać i zrozumieć uczucia. Opowiastki z ćwiczeniami. Za co kochają nas zwierzęta","049582",52,{"$f":"'Krok 3'!E106","v":0},0]
["MATERIAŁY EDUKACYJNE","Pewny start. Poznać i zrozumieć uczucia. Historyjki obrazkowe. Co bybyło, gdyby","086148",83,{"$f":"'Krok 3'!E107","v":0},0]
[null,"Pewny start. Poznać i zrozumieć uczucia. Poradnik pozytywny. Jak sobieradzić z uczuciami","086147",62,{"$f":"'Krok 3'!E108","v":0},0]
[null,"Pewny start. Poznać i zrozumieć uczucia. Historyjki społeczne. Uczuciaw nas i w relacjach ze światem","086146",56,{"$f":"'Krok 3'!E109","v":0},0]
["MATERIAŁ ĆW./EDU.","Pewny start. O dojrzewaniu. Chłopcy. Zestaw","049467",265,{"$f":"'Krok 3'!E110","v":0},0]
[null,"Pewny start. O dojrzewaniu. Chłopcy. Poradnik metodyczny z tablicami do komunikacji","049478",29,{"$f":"'Krok 3'!E111","v":0},0]
["MATERIAŁ ĆW./EDU.","Pewny start. O dojrzewaniu. Dziewczęta. Zestaw","049497",265,{"$f":"'Krok 3'!E112","v":0},0]
["MATERIAŁY ĆWICZENIOWE","Pewny start. Odkrywam świat. Moje ćwiczenia. Poziom A","086111",52,{"$f":"'Krok 3'!E113","v":0},0]
[null,"Pewny start. Odkrywam świat. Moje ćwiczenia. Poziom B","086113",52,{"$f":"'Krok 3'!E114","v":0},0]
[null,"Pewny start. Odkrywam świat. Moje ćwiczenia. Poziom C","049561",52,{"$f":"'Krok 3'!E115","v":0},0]
["MATERIAŁY EDUKACYJNE","Pewny start. Odkrywam świat. Moja książka. Poziom A","086112",96,{"$f":"'Krok 3'!E116","v":0},0]
[null,"Pewny start. Odkrywam świat. Moja książka. Poziom B","049557",109,{"$f":"'Krok 3'!E117","v":0},0]
[null,"Pewny start. Odkrywam świat. Moja książka. Poziom C","049558",122,{"$f":"'Krok 3'!E118","v":0},0]
[null,"Pewny start. Odkrywam świat. Tablice do komunikacji. Poradnik metodyczny","049562",36,{"$f":"'Krok 3'!E119","v":0},0]
["MATERIAŁY EDUKACYJNE","Pewny start. Karta demonstracyjna. Pogoda","049303",16,{"$f":"'Krok 3'!E120","v":0},0]
[null,"Pewny start. Karta demonstracyjna. Polska","049304",16,{"$f":"'Krok 3'!E121","v":0},0]
[null,"Pewny start. Karta demonstracyjna. Pory roku","049305",16,{"$f":"'Krok 3'!E122","v":0},0]
["MATERIAŁY ĆWICZENIOWE","Pewny start. Uczymy się pisać. Zeszyt ćwiczeń. Piszę po śladzie wyrazy 1","049652",27,{"$f":"'Krok 3'!E123","v":0},0]
[null,"Pewny start. Uczymy się pisać. Zeszyt ćwiczeń. Piszę po śladzie zdania 1","049653",15,{"$f":"'Krok 3'!E124","v":0},0]
["MATERIAŁY EDUKACYJNE","Pewny start. Czytam sam. Dbam o zdrowie","049091",43,{"$f":"'Krok 3'!E125","v":0},0]
[null,"Pewny start. Czytam sam. Dobre zachowanie w szkole","049092",43,{"$f":"'Krok 3'!E126","v":0},0]
[null,"Pewny start. Czytam sam. Ja i świat zwierząt","049093",43,{"$f":"'Krok 3'!E127","v":0},0]
[null,"Pewny start. Czytam sam. Jaki jestem?","049094",43,{"$f":"'Krok 3'!E128","v":0},0]
[null,"Pewny start. Czytam sam. Jestem konsumentem","049095",43,{"$f":"'Krok 3'!E129","v":0},0]
[null,"Pewny start. Czytam sam. Kim jestem?","049096",43,{"$f":"'Krok 3'!E130","v":0},0]
[null,"Pewny start. Czytam sam. Kulturalne zachowanie przy stole","049097",43,{"$f":"'Krok 3'!E131","v":0},0]
[null,"Pewny start. Czytam sam. Mieszkam w Polsce","049098",43,{"$f":"'Krok 3'!E132","v":0},0]
[null,"Pewny start. Czytam sam. Moje hobby","049099",43,{"$f":"'Krok 3'!E133","v":0},0]
[null,"Pewny start. Czytam sam. Moje relacje z innymi","049100",43,{"$f":"'Krok 3'!E134","v":0},0]
[null,"Pewny start. Czytam sam. Pomagam w domu","049101",43,{"$f":"'Krok 3'!E135","v":0},0]
[null,"Pewny start. Czytam sam. Uroczystości i okoliczności","049102",43,{"$f":"'Krok 3'!E136","v":0},0]
["MATERIAŁY EDUKACYJNE","Pewny start. Instrukcje zachowań. Asertywność","049283",43,{"$f":"'Krok 3'!E137","v":0},0]
[null,"Pewny start. Instrukcje zachowań. Bezpieczeństwo na drodze","049284",43,{"$f":"'Krok 3'!E138","v":0},0]
[null,"Pewny start. Instrukcje zachowań. Bezpieczeństwo w internecie","049285",43,{"$f":"'Krok 3'!E139","v":0},0]
[null,"Pewny start. Instrukcje zachowań. Choroba","049286",43,{"$f":"'Krok 3'!E140","v":0},0]
[null,"Pewny start. Instrukcje zachowań. Co czuję?","049287",43,{"$f":"'Krok 3'!E141","v":0},0]
[null,"Pewny start. Instrukcje zachowań. Czas wolny","049288",43,{"$f":"'Krok 3'!E142","v":0},0]
[null,"Pewny start. Instrukcje zachowań. Dbam o swoje ciało","049289",43,{"$f":"'Krok 3'!E143","v":0},0]
[null,"Pewny start. Instrukcje zachowań. Jedzenie","049292",43,{"$f":"'Krok 3'!E144","v":0},0]
[null,"Pewny start. Instrukcje zachowań. Jestem dorosły","049293",43,{"$f":"'Krok 3'!E145","v":0},0]
[null,"Pewny start. Instrukcje zachowań. Kawiarnia","049294",43,{"$f":"'Krok 3'!E146","v":0},0]
[null,"Pewny start. Instrukcje zachowań. Kim jestem?","049295",43,{"$f":"'Krok 3'!E147","v":0},0]
[null,"Pewny start. Instrukcje zachowań. Komunikacja między nami","049298",43,{"$f":"'Krok 3'!E148","v":0},0]
[null,"Pewny start. Instrukcje zachowań. Nagłe zdarzenie","049299",43,{"$f":"'Krok 3'!E149","v":0},0]
[null,"Pewny start. Instrukcje zachowań. Pory roku","049300",43,{"$f":"'Krok 3'!E150","v":0},0]
[null,"Pewny start. Instrukcje zachowań. Ubranie","049301",43,{"$f":"'Krok 3'!E151","v":0},0]
[null,"Pewny start. Instrukcje zachowań. Zakupy","049302",43,{"$f":"'Krok 3'!E152","v":0},0]
["MATERIAŁY ĆWICZENIOWE","Pewny start. Zajęcia rewalidacyjne. Funkcjonowanie społeczne. Karty pracy. Poziom 2","049692",73,{"$f":"'Krok 3'!E153","v":0},0]
[null,"Pewny start. Zajęcia rewalidacyjne. Funkcjonowanie społeczne. Karty pracy. Poziom 3","049693",73,{"$f":"'Krok 3'!E154","v":0},0]
[null,"Pewny start. Zajęcia rewalidacyjne. Koncentracja uwagi. Karty pracy. Poziom 3","049697",73,{"$f":"'Krok 3'!E155","v":0},0]
[null,"Pewny start. Zajęcia rewalidacyjne. Orientacja przestrzenna. Karty pracy. Poziom 3","049700",73,{"$f":"'Krok 3'!E156","v":0},{"$f":"E165*D165","v":0}]
[null,"Pewny start. Zajęcia rewalidacyjne. Percepcja słuchowa. Karty pracy. Poziom 3","049703",73,{"$f":"'Krok 3'!E157","v":0},0]
[null,"Pewny start. Zajęcia rewalidacyjne. Percepcja wzrokowa. Karty pracy. Poziom 3","049706",73,{"$f":"'Krok 3'!E158","v":0},0]
[null,"Pewny start. Zajęcia rewalidacyjne. Wypowiedzi ustne i pisemne. Karty pracy. Poziom 3","049709",73,{"$f":"'Krok 3'!E159","v":0},0]
["MATERIAŁ EDUKACYJNY","Pewny start. Zaśpiewajmy razem. Śpiewnik z symbolami PCS","049741",200,{"$f":"'Krok 3'!E160","v":0},0]
["MATERIAŁ ĆWICZENIOWY","Pewny start. Zaśpiewajmy razem. Zeszyt plastyczno-grafomotoryczny do śpiewnika z symbolami PCS","049742",40,{"$f":"'Krok 3'!E161","v":0},0]
["MATERIAŁY ĆWICZENIOWE","Akademia pomysłów. Rozwój emocjonalno-społeczny. Ja i moja rodzina","049000",54,{"$f":"'Krok 3'!E162","v":0},0]
[null,"Akademia pomysłów. Rozwój emocjonalno-społeczny. Ja i moje ciało. Część 1","049001",48,{"$f":"'Krok 3'!E163","v":0},0]
[null,"Akademia pomysłów. Rozwój emocjonalno-społeczny. Ja i moje ciało. Część 2","049002",48,{"$f":"'Krok 3'!E164","v":0},0]
[null,"Akademia pomysłów. Rozwój emocjonalno-społeczny. Ja w szkole","049003",54,{"$f":"'Krok 3'!E165","v":0},0]
[null,"Akademia pomysłów. Rozwój emocjonalno-społeczny. Ja w świecie","049004",48,{"$f":"'Krok 3'!E166","v":0},0]
["MATERIAŁY EDUKACYJNE","Akademia pomysłów. Jestem ZA rozmową. Komiks społeczny 1","049016",69,{"$f":"'Krok 3'!E167","v":0},0]
[null,"Akademia Pomysłów. Jestem ZA rozmową. Komiks społeczny 2","049017",69,{"$f":"'Krok 3'!E168","v":0},0]
["MATERIAŁY EDUKACYJNE","Akademia pisania. Układanki obrazkowo-wyrazowe. Poznaję i utrwalam poprawną wpisownię wyrazów ó/u","049141",93,{"$f":"'Krok 3'!E169","v":0},0]
[null,"Akademia pisania. Układanki obrazkowo-wyrazowe. Poznaję i utrwalam poprawną wpisownię wyrazów rz/ż","049142",93,{"$f":"'Krok 3'!E170","v":0},0]
["MATERIAŁY ĆWICZENIOWE","Funkcje psychofizyczne. Grafomotoryka. Karty pracy.  Poziom 1","086531",74,{"$f":"'Krok 3'!E171","v":0},0]
[null,"Funkcje psychofizyczne. Koncentracja uwagi. Karty pracy. Poziom 1","086532",74,{"$f":"'Krok 3'!E172","v":0},0]
[null,"Funkcje psychofizyczne. Percepcja wzrokowa. Karty pracy. Poziom 1","086533",74,{"$f":"'Krok 3'!E173","v":0},0]
[null,"Funkcje psychofizyczne. Percepcja słuchowa. Karty pracy. Poziom 1","086534",74,{"$f":"'Krok 3'!E174","v":0},0]
[null,"Funkcje psychofizyczne. Orientacja przestrzenna. Karty pracy. Poziom 1","086535",74,{"$f":"'Krok 3'!E175","v":0},0]
[null,"Funkcje psychofizyczne. Funkcjonowanie społeczne. Karty pracy. Poziom","086536",74,{"$f":"'Krok 3'!E176","v":0},0]
[null,"Funkcje psychofizyczne. Wypowiedzi ustne i pisemne. Karty pracy. Poziom 1","086537",74,{"$f":"'Krok 3'!E177","v":0},0]
["MATERIAŁ EDUKACYJNY","Funkcje psychofizyczne. Karty demonstracyjne i materiały interaktywne. Poziom 1","049282",330,{"$f":"'Krok 3'!E178","v":0},0]
[]
[null,null,null,"Wartość zamówienia:",null,{"$f":"SUM(F35:F187,F16:F31)","v":0}]